{"text_format":"1","workbook":"xlsx","n_sheets":6,"sheets":["Evaluación Adquisición-Usuario","Lineamientos propuestos","Política de cotizaciones","Lista","Matriz de calor","Actividades Riesgo III IV V"],"not_rendered":{"charts":0,"images":2,"macros":0,"external_links":0,"defined_names":7,"comments":1,"pivot_tables":0},"unopened":[],"bounds":{"document_bytes":16777216,"sheet_cells":100000,"rows_first":2000,"rows_last":500,"rows_between":2000,"halvings":0,"cell_chars":16384,"cell_head_chars":4096},"cells_cut":0,"cells_raw":0,"read":"whole","date_system":"1900"}

{"sheet":"Evaluación Adquisición-Usuario","index":0,"n_rows":26,"n_cols":12,"rows_kept":26,"cut":false,"hidden":false,"merged":[[12,1,12,2],[14,11,14,13],[14,7,14,10],[15,11,23,13],[18,1,18,2],[19,1,19,2],[20,1,20,2],[21,1,21,2],[17,8,17,10],[15,1,16,2],[17,1,17,2],[15,8,16,10],[15,7,16,7],[15,5,16,5],[15,6,16,6],[22,1,22,2],[0,1,0,13],[6,2,6,3],[1,1,1,13],[7,2,7,3],[8,4,8,13],[8,2,8,3],[3,4,7,10],[3,2,3,3],[4,2,4,3],[5,2,5,3],[3,11,7,13],[2,4,2,13],[2,1,2,3],[25,11,25,13],[21,3,21,4],[23,3,23,4],[19,8,19,10],[20,8,20,10],[21,8,21,10],[19,3,19,4],[20,3,20,4],[23,8,23,10],[24,11,24,13],[24,7,24,10],[23,1,23,2],[25,1,25,2],[24,1,24,6],[9,4,12,13],[25,3,25,6],[22,8,22,10],[9,1,9,2],[10,1,11,1],[10,2,11,2],[13,1,13,2],[18,3,18,4],[17,3,17,4],[15,3,16,4],[22,3,22,4],[18,8,18,10],[25,7,25,10]]}
[null,"Herramienta de apoyo para definir el mecanismo de formalización e impacto en el riesgo de una adquisición de bienes y/o servicios (HAMFIR)                            2025"]
[null,"¡¡¡   Diligencie únicamente las celdas en color blanco   !!!"]
[null,"Información general",null,null,"Mecanismo de Formalización"]
[null,"Descripción de la compra",null,null,{"$f":"+IF(E14=\"Continúe con la evaluación de Riesgo\",IF(L16=\"Complete la evaluación de riesgo\",\"Complete la evaluación de riesgo\",IF(AND(C5=Lista!C4,(C9/Lista!B3)<100,L16=Lista!E5),'Lineamientos propuestos'!A36,IF(AND(C5=Lista!C3,(C9/Lista!B3)>=100,H20=\"SI\"),'Lineamientos propuestos'!A35,\"Continúe con la evaluación de Riesgo\"))),E14)","v":"Diligencie/complete la información general del proyecto de adquisición de bienes y/o servicios"},null,null,null,null,null,null,{"$f":"+IF(OR(C5=\"\",C6=\"\",C9=0),\" \",IF(OR(E4=\"Continúe con la evaluación de Riesgo\",E4=\"Complete la evaluación de riesgo\",E4=\"Corregir la combinación seleccionada en información general \n(Tipo de adquisición - tipo de persona)\",E4=\"Complete la evaluación de características adquisición PN\"),\" \",IF(AND($C$6=Lista!$A$4,OR(D13=Lista!$D$3,D14=Lista!$D$3)),\"\",IF(OR(D14=Lista!$D$3,H20=\"SI\"),'Lineamientos propuestos'!$G$37,IF(AND(C5=Lista!C4,C6=Lista!A4,(C9/'Lineamientos propuestos'!B2)<=0.5),'Lineamientos propuestos'!G34,IF(AND(C5=Lista!C4,C6=Lista!A4,H26=Lista!D4,(C9/'Lineamientos propuestos'!B2)<100),'Lineamientos propuestos'!G34,IF(AND(C5=Lista!C3,C6=Lista!A4,H26=Lista!D3),'Lineamientos propuestos'!G35,IF(AND(C5=Lista!C4,C6=Lista!A4,H26=Lista!D4,(C9/'Lineamientos propuestos'!B2)>=100),'Lineamientos propuestos'!G35,IF(AND(C5=Lista!C4,C6=Lista!A4,H26=Lista!D3),'Lineamientos propuestos'!G35,IF(E4='Lineamientos propuestos'!A33,'Lineamientos propuestos'!G33,IF(OR(L16=Lista!E4,L16=Lista!E3),'Lineamientos propuestos'!G39,IF(E4='Lineamientos propuestos'!A35,'Lineamientos propuestos'!G35,IF(AND(C5=Lista!C3,(C9/'Lineamientos propuestos'!B2)<100),'Lineamientos propuestos'!G38,IF(AND(C5=Lista!C4,(C9/'Lineamientos propuestos'!B2)<50),'Lineamientos propuestos'!G36,'Lineamientos propuestos'!G37))))))))))))))","v":" "}]
[null,"Tipo de adquisición"]
[null,"Tipo de persona"]
[null,"Valor antes de IVA (COP) "]
[null,"Valor IVA (COP)"]
[null,"Valor total IVA incluido (COP)",{"$f":"+C7+C8","v":0},null,"Servicio que atenderá el requerimiento"]
[null,"¿Por solicitud del contratista, el documento de formalización del acuerdo debe firmarse por el representante legal de Uniandes?",null,null,{"$f":"+IF(AND(C6=Lista!$A$3,OR(D10=\"SI\",C11=\"SI\",F23=\"Alto\")),'Lineamientos propuestos'!$A$43,IF(OR(E4=\"Diligencie/complete la información general del proyecto de adquisición de bienes y/o servicios\",E4=\"Continúe con la evaluación de Riesgo\",E4=\"Complete la evaluación de riesgo\",E4=\"Corregir la combinación seleccionada en información general \n(Tipo de adquisición - tipo de persona)\",E4=\"Complete la evaluación de características adquisición PN\"),\"Información incompleta para determinar el servicio que atenderá el requerimiento\",IF(AND($C$6=Lista!$A$4,OR(D13=Lista!$D$3,D14=Lista!$D$3)),\"\",IF(OR(E4='Lineamientos propuestos'!A33,E4='Lineamientos propuestos'!A36,E4='Lineamientos propuestos'!A38),'Lineamientos propuestos'!A42,IF(E4='Lineamientos propuestos'!A34,'Lineamientos propuestos'!A45,IF(AND(C5=Lista!C3,OR(L16=Lista!E4,L16=Lista!E3)),'Lineamientos propuestos'!A43,IF(E4='Lineamientos propuestos'!A35,'Lineamientos propuestos'!A43,IF(E4='Lineamientos propuestos'!A34,'Lineamientos propuestos'!A45:G45,IF(AND(C5=Lista!C3,E4='Lineamientos propuestos'!A35),'Lineamientos propuestos'!A43,IF(AND(C5=Lista!C3,L16=Lista!E5),'Lineamientos propuestos'!A42,IF(AND(C5=Lista!C4,L16=\"Complete la evaluación de riesgo\"),\"Complete la evaluación de riesgo para determinar el servicio que atenderá el requerimiento\",IF(AND(C5=Lista!C4,L16=Lista!E3),'Lineamientos propuestos'!A43,IF(AND(C5=Lista!C4,(C9/'Lineamientos propuestos'!B2)<50),'Lineamientos propuestos'!A42,IF(AND(C5=Lista!C4,(C9/'Lineamientos propuestos'!B2)<100,L16=Lista!E5),'Lineamientos propuestos'!A42,IF(AND(C5=Lista!C4,E4='Lineamientos propuestos'!A35,OR(L16=Lista!E4,L16=Lista!E5)),'Lineamientos propuestos'!A43,\"\")))))))))))))))","v":"Información incompleta para determinar el servicio que atenderá el requerimiento"}]
[null,"¿El requerimiento se encuentra asociado a un contrato de egresos previo?",null,{"$f":"IF(C11=\"\",\"\",IF(C11=\"NO\",\"# Contrato previo: No aplica\",\"# Contrato previo:\"))","v":""}]
[]
[null,"¿La compra requiere Anticipo?"]
[null,"¿El valor del anticipo supera los 50 SMMLV?",null,null,{"$f":"+IF(AND(C6=Lista!$A$3,OR(D10=\"SI\",C11=\"SI\",F23=\"Alto\")),'Lineamientos propuestos'!A35,IF(OR(C5=\"\",C6=\"\",C9=0),\"Diligencie/complete la información general del proyecto de adquisición de bienes y/o servicios\",IF(AND(C5=Lista!C3,L16=\"Complete la evaluación de riesgo\"),\"Complete la evaluación de riesgo\",IF(AND($C$6=Lista!$A$4,OR(D13=Lista!$D$3,D14=Lista!$D$3)),\"¡¡¡No está permitido la generación de anticipos para Personas Naturales!!!\",IF(AND(C5=Lista!C4,(C9/Lista!B3)<=0.5,C6=Lista!A4),'Lineamientos propuestos'!A36,IF(AND(C5=Lista!C4,(C9/Lista!B3)>0.5,(C9/Lista!B3)<100,C6=Lista!A4),L26,IF(AND(C5=Lista!C4,(C9/Lista!B3)>0.5,(C9/Lista!B3)>100,C6=Lista!A4),L26,\nIF(AND(C5=Lista!C4,(C9/Lista!B3)>=100,C6=Lista!A3),'Lineamientos propuestos'!A35,IF(AND(C5=Lista!C4,C6=Lista!A3,OR(L16=Lista!E4,L16=Lista!E3),(C9/Lista!B3)<50),'Lineamientos propuestos'!A36,IF(AND(C5=Lista!C3,(C9/Lista!B3)<100,OR(L16=Lista!E4,L16=Lista!E5)),'Lineamientos propuestos'!A38,IF(OR(L16=Lista!E4,L16=Lista!E3),'Lineamientos propuestos'!A35,IF(AND(C5=Lista!C3,H20=\"SI\",(C9/Lista!B3)>=100),'Lineamientos propuestos'!A35,IF(AND(C5=Lista!C3,L16=Lista!E5),'Lineamientos propuestos'!A38,\"Continúe con la evaluación de riesgo\")))))))))))))","v":"Diligencie/complete la información general del proyecto de adquisición de bienes y/o servicios"}]
[null,"# Cotizaciones según Política",{"$f":"+IF(C7<1,\"\",IF(C7<=('Lineamientos propuestos'!B2*10),\"1 Cotización\",IF('Evaluación Adquisición-Usuario'!C7:D7<=('Lineamientos propuestos'!B2*25),\"2 Cotizaciones\",\"3 Cotizaciones\")))","v":""},null,null,null,null,"Evaluación de Riesgo",null,null,null,"Nivel de riesgo general"]
[null,"RIESGO",null,"Tips de evaluación del riesgo",null,"Nivel Riesgo ","Medida de Mitigación","Existencia del Riesgo (Si/No)\n(seleccione la opción)","Probabilidad de ocurrencia del Riesgo\n(seleccione la opción)",null,null,{"$f":"+IF(OR(F18=\"ALTO\",F19=\"ALTO\",F20=\"ALTO\",F21=\"ALTO\",F22=\"ALTO\",F23=\"ALTO\",F24=\"ALTO\"),\"ALTO\",IF(OR(F18=\"MEDIO\",F19=\"MEDIO\",F20=\"MEDIO\",F21=\"MEDIO\",F22=\"MEDIO\",F23=\"MEDIO\",F24=\"MEDIO\"),\"MEDIO\",IF(AND(F18=\"BAJO\",F19=\"BAJO\",F20=\"BAJO\",F21=\"BAJO\",F22=\"BAJO\",F23=\"BAJO\",F24=\"BAJO\"),\"BAJO\",\"Complete la evaluación de riesgo\")))","v":"Complete la evaluación de riesgo"}]
[]
[null,"Incumplimiento total o parcial en el resultado esperado",null,"Tiene mayor riesgo si:\n-El bien o servicio tiene un desarrollo o personalización específica y de alta complejidad.\n-Si hay lugar a que se presenten cambios o modificaciones a las características inicialmente pactadas.\n-Es la primera vez que se solicita El bien o servicio en la Universidad.\n-Hay desconocimiento o conocimiento parcial sobre la idoneidad y experiencia del proveedor.\n- Es el único proveedor en el mercado o es un proveedor muy especializado",null,{"$f":"+IF(H18=\"No\",\"Bajo\",IF(AND(I18<>\"\",H18=\"\"),\"Complete la evaluación de riesgo\",IF(AND(H18<>\"\",I18=\"\"),\"Complete la evaluación de riesgo\",IF(H18=\"Si\",I18,\"Complete la evaluación de riesgo\"))))","v":"Complete la evaluación de riesgo"},"Descripción detallada de la necesidad y sus particularidades en la fase de negociación"]
[null,"Afectación a terceros:",null,"Tiene mayor riesgo si:\n-Si el desarrollo del objeto puede causar un perjuicio a personas (Naturales o Jurídicas) ajenas al contrato, incluyendo empleados, profesores o estudiantes de la Universidad",null,"Complete la evaluación de riesgo","- Señalización rigurosa y adecuada\n- Planeación de actividades y horarios con el contratista. "]
[null,"Servicios postventa:",null,"Tiene mayor riesgo si:\n-La compra de un bien tiene asociado servicios de instalación o mantenimiento posterior a la entrega\n-La adquisición del bien o servicio incluye actividades o servicios posteriores a la ejecución del objeto.\n-No se tiene claramente delimitado o detallado el alcance del bien o servicio\n-Las negociaciones con empresas extranjeras incluyen un representante que preste los servicios postventa en Colombia",null,"Complete la evaluación de riesgo","* Claridad del alcance de la garantía o servicio post-venta ofrecido por el proveedor.\n* Seguimiento a la vigencia y condiciones de las garantías o servicios post-venta contratados."]
[null,"Personal del contratista en sitio",null,"Tiene mayor riesgo si:\n-Durante la ejecución del contrato se requiere la presencia de personal del contratista en las instalaciones de la Universidad.\n-Si para el desarrollo de las actividades se debe exigir al proveedor certificaciones regulatorias (Certificado de pago de ARL, parafiscales, etc)",null,"Complete la evaluación de riesgo","- Expedición pólizas de Calidad, cumplimiento, Pago de seguridad social y prestaciones sociales, Resposabilidad Civil"]
[null,"Protección de derechos de propiedad Intelectual",null,"Tiene mayor riesgo si:\n-La adquisición del bien o servicio está sujeta a la protección de derechos de propiedad intelectual: derecho de autor y propiedad industrial",null,"Complete la evaluación de riesgo"]
[null,"Información confidencial o datos personales",null,"Tiene mayor riesgo si:\n-El objeto principal de la adquisición del bien o servicio está sujeta al manejo de información confidencial o datos personales (Como por ejemplo: Contratación de servicios tecnológicos y de manejo de la información, recolección de datos de terceros y/o suministro de información de alto valor para Uniandes)",null,"Complete la evaluación de riesgo"]
[null,"Adquisición de bienes y/o servicios que incluyan actividades catalogadas como de alto riesgo",null,"Tiene mayor riesgo si:\n-La adquisición del bien o servicio tiene asociadas actividades tales como:\n\n•  TRABAJO EN ALTURAS\n• ELECTRICIDAD\n• OBRA CIVIL\n• VENTANERÍA Y PERFILERÍA\n• TRANSPORTE DE PASAJEROS\n• VENTA DE ALIMENTOS \n• RECOLECCION RESIDUOS QUIMICOS \n• FUMIGACION\n• VIGILANCIA Y SEGURIDAD PRIVADA\n• PREPARACIÓN Y/O ELABORACIÓN DE ALIMENTOS\n• MANIPULACIÓN DE ALIMENTOS\n• MANIPULACIÓN DE COMBUSTIBLES O EQUIPOS EXPLOSIVOS\n• MANTENIMIENTO DE EQUIPOS Y SISTEMAS DE LABORATORIOS\n• OBRAS CIVILES COMPLEJAS (CIMENTACIÓN, EXCAVACIÓN, LEVANTAMIENTO DE PANTALLAS)\n• CUANDO LA PRESTACIÓN DEL SERVICIO INVOLUCRE LA PRESENCIA DE PERSONAL A CARGO DEL PROVEEDOR EN SITIO, SIEMPRE QUE SEA UN CONTRATO DE EJECUCIÓN SUCESIVA O LARGA DURACIÓN (CONTRATOS QUE NO SE EJECUTAN EN UN SOLO DÍA, QUE IMPLICAN UN TIEMPO CONSIDERABLE EN LA UNIVERSIDAD)",null,"Complete la evaluación de riesgo"]
[null,"Características de adquisición Bien/Servicio a Persona natural (PN)",null,null,null,null,null,"Existencia de la condición (Si/No) (seleccione la opción)",null,null,null,"Tipo de formalización PN"]
[null,"¿La adquisición a un proveedor \"Persona Natural\" incluye alguna las siguiente característica?",null,"Constitución de garantías o pólizas que amparen el cumplimiento, calidad o responsabilidad civil entre otras.",null,null,null,null,null,null,null,{"$f":"IF(OR(C6=Lista!A3,C5=Lista!C3),\"No requiere evaluación de características PN\",IF(AND(C5=Lista!C4,(C9/Lista!B3)<=0.5,C6=Lista!A4),'Lineamientos propuestos'!A36,IF(AND(C6=Lista!A4,OR(L16=Lista!E3,L16=Lista!E4)),'Lineamientos propuestos'!A34,IF(C6=\"Natural\",IF(H26=\"SI\",'Lineamientos propuestos'!$A$34,IF(H26=\"\",\"Complete la evaluación de características adquisición PN\",'Lineamientos propuestos'!$A$34)),\"No requiere evaluación de características PN\"))))","v":"No requiere evaluación de características PN"}]

{"sheet":"Lineamientos propuestos","index":1,"n_rows":56,"n_cols":10,"rows_kept":56,"cut":false,"hidden":true,"merged":[[46,0,46,6],[47,0,47,6],[48,0,48,6],[44,0,44,6],[41,0,41,6],[42,0,42,6],[43,0,43,6],[40,0,40,6],[26,2,26,3],[35,0,36,5],[34,0,34,5],[26,5,26,8],[28,0,28,8],[29,0,29,8],[32,0,32,5],[37,0,38,5],[33,0,33,5],[5,1,5,8],[7,2,7,3],[31,0,31,6],[8,0,13,0],[8,1,13,1],[14,1,19,1],[14,0,19,0],[20,0,24,0],[20,1,24,1],[21,4,21,5],[20,4,20,5],[22,4,22,5],[24,4,24,5],[23,4,23,5],[55,3,55,5],[50,1,50,8],[51,3,51,5],[52,3,52,5],[53,3,53,5],[54,3,54,5]]}
[null,{"$f":"YEAR(TODAY())","v":2025}]
["SMMLV",1423500]
["Contrato:",{"$f":"+B2*100","v":142350000},"Vlr. a partir del cual se debe suscribir un contrato"]
["Póliza de anticipo:",{"$f":"+B2*10","v":14235000},"Valor a partir del cual se debe expedir póliza de buen manejo del anticipo, no siendo superior al 50% del valor de la compra"]
[]
["Propuesta: Lineamientos para definir la herramienta de formalización","LINEAMIENTOS PARA LA ADQUISICIÓN DE BIENES Y/O SERVICIOS"]
["Tipo de adquisición","Persona","Monto",{"$f":"\"SMMLV\"&\" \"&B1","v":"SMMLV 2025"},"Riesgo","Servicio postventa","Mecanismo de formalización","Pólizas","Servicio"]
["Bienes y/o servicios","Natural y/o Jurídica","Asociado a un Contrato Marco",null,"Alto / Medio / Bajo","Si / No","Orden de Compra de Bienes/Servicios asociada a un contrato","Sin pólizas","Compras"]
["Bienes","Jurídica\ny/o\nNatural","< 100 SMMLV",{"$f":"+\"Menor a \"&(TEXT(B2*100,\"$ #.##0\"))","v":"Menor a $ 142.350.000"},"Bajo","No","Órden de Compra de bienes con clausulado estándar*","Sin pólizas","Compras",1]
[null,null,"< 100 SMMLV",{"$f":"+\"Menor a \"&(TEXT(B2*100,\"$ #.##0\"))","v":"Menor a $ 142.350.000"},"Bajo / Medio","Si","Órden de Compra de bienes con clausulado estándar*","Con pólizas","Compras",2]
[null,null,"< 100 SMMLV",{"$f":"+\"Menor a \"&(TEXT(B2*100,\"$ #.##0\"))","v":"Menor a $ 142.350.000"},"Alto","Si o No","Contrato (Minuta) de Egresos","Con pólizas","Contratos de Egresos",3]
[null,null,"≥ 100 SMMLV",{"$f":"+\"Mayor o igual a \"&(TEXT(B2*100,\"$ #.##0\"))","v":"Mayor o igual a $ 142.350.000"},"Bajo","No","Órden de Compra de bienes con clausulado estándar*","Con pólizas","Compras",4]
[null,null,"≥ 100 SMMLV",{"$f":"+\"Mayor o igual a \"&(TEXT(B2*100,\"$ #.##0\"))","v":"Mayor o igual a $ 142.350.000"},"Bajo","Si","Contrato (Minuta) de Egresos","Con pólizas","Contratos de Egresos",5]
[null,null,"≥ 100 SMMLV",{"$f":"+\"Mayor o igual a \"&(TEXT(B2*100,\"$ #.##0\"))","v":"Mayor o igual a $ 142.350.000"},"Medio / Alto","Si o No","Contrato (Minuta) de Egresos","Con pólizas","Contratos de Egresos",6]
["Servicios ","Jurídica","< 50 SMMLV",{"$f":"+\"Menor a \"&(TEXT(B2*50,\"$ #.##0\"))","v":"Menor a $ 71.175.000"},"Bajo",null,"Órden de Compra de servicios con clausulado estándar*","Sin pólizas","Compras",7]
[null,null,"< 50 SMMLV",{"$f":"+\"Menor a \"&(TEXT(B2*50,\"$ #.##0\"))","v":"Menor a $ 71.175.000"},"Medio / Alto",null,"Órden de Compra de servicios con clausulado estándar*","Con pólizas","Compras",8]
[null,null,"≥ 50 y < 100 SMMLV",{"$f":"+\"Entre \"&(TEXT(B2*50,\"$ #.##0\"))&\" y \"&(TEXT((B2*100)-1,\"$ #.##0\"))","v":"Entre $ 71.175.000 y $ 142.349.999"},"Bajo",null,"Órden de Compra de servicios con clausulado estándar*","Con pólizas","Compras",9]
[null,null,"≥ 50 y < 100 SMMLV",{"$f":"+\"Entre \"&(TEXT(B2*50,\"$ #.##0\"))&\" y \"&(TEXT((B2*100)-1,\"$ #.##0\"))","v":"Entre $ 71.175.000 y $ 142.349.999"},"Medio / Alto",null,"Contrato (Minuta) de Egresos","Con pólizas","Contratos de Egresos",10]
[null,null,"≥ 100 SMMLV",{"$f":"+\"Mayor o igual a \"&(TEXT(B2*100,\"$ #.##0\"))","v":"Mayor o igual a $ 142.350.000"},"Medio / Bajo",null,"Contrato (Minuta) de Egresos","Con Pólizas","Contratos de Egresos",11]
[null,null,"≥ 100 SMMLV",{"$f":"+\"Mayor o igual a \"&(TEXT(B2*100,\"$ #.##0\"))","v":"Mayor o igual a $ 142.350.000"},"Alto",null,"Contrato (Minuta) de Egresos","Con pólizas","Contratos de Egresos",12]
["Servicios ","Natural","<= 0,5 SMMLV",{"$f":"+\"Menor o igual a \"&(TEXT(B2*0.5,\"$ #.##0\"))","v":"Menor o igual a $ 711.750"},"Riesgo: Alto / Medio / Bajo",null,"Órden de Compra de servicios con clausulado estándar*","Sin pólizas","Compras",13]
[null,null,"Monto",{"$f":"\"SMMLV\"&\" \"&B1","v":"SMMLV 2025"},"Condiciones especiales PN",null,"Mecanismo de formalización","Pólizas","Servicio"]
[null,null,"> 0,5 y < 100 SMMLV",{"$f":"+\"Entre \"&(TEXT(B2*0.5+1,\"$ #.##0\"))&\" y \"&(TEXT((B2*100)-1,\"$ #.##0\"))","v":"Entre $ 711.751 y $ 142.349.999"},"Pólizas = NO",null,"Contrato Civil","Sin pólizas","Contratos Civiles",14]
[null,null,"> 0,5 y < 100 SMMLV",{"$f":"+\"Entre \"&(TEXT(B2*0.5+1,\"$ #.##0\"))&\" y \"&(TEXT((B2*100)-1,\"$ #.##0\"))","v":"Entre $ 711.751 y $ 142.349.999"},"Pólizas = SI",null,"Contrato Civil","Con pólizas","Contratos Civiles",15]
[null,null,"≥ 100 SMMLV",{"$f":"+\"Mayor o igual a \"&(TEXT(B2*100,\"$ #.##0\"))","v":"Mayor o igual a $ 142.350.000"},"SI / NO",null,"Contrato Civil","Con pólizas","Contratos Civiles",16]
[null,"* Servicios que no puedan ser contratados a traves de Contrato Civil.",null,null,null,null,"* Gestión de contratos opcional"]
["Bienes y/o servicios","Jurídica","Cualquier monto con anticipo",null,"Alto / Medio / Bajo","Se debe exigir póliza de buen manejo del anticipo"]
[]
["Toda firma de contrato y/o aprobación de Orden de Compra (OC) debe ser acorde a la Política Delegaciones Institucionales y Funciones Propias de los Cargos."]
["Toda póliza requiere aprobación de la Dirección Jurídica, excepto la(s) que sea(n) expedida(s) a través del Programa de Atención de Contratistas (PAC)"]
[]
["Mecanismos de Formalización"]
["Orden de Compra de Bienes/Servicios asociada a un contrato",null,null,null,null,null,"-     Sin Pólizas"]
["Contrato Civil",null,null,null,null,null,"-     Sin Pólizas"]
["Contrato (Minuta) de Egresos",null,null,null,null,null,"-     Con Pólizas"]
["Órden de Compra de servicios con clausulado estándar",null,null,null,null,null,"-     Sin Pólizas"]
[null,null,null,null,null,null,"-     Con Pólizas"]
["Órden de Compra de bienes con clausulado estándar",null,null,null,null,null,"-     Sin Pólizas"]
[null,null,null,null,null,null,"-     Con Pólizas"]
[]
["Unidades de Servicio - Servicios Administrativos"]
["Servicio de Compras"]
["Contratos de Egresos"]
["Abastecimiento Estratégico"]
["Contratos Civiles"]
[]
["Escenarios de Compra/Contratación no permitidos"]
["Adquisición a Persona Natural con requerimiento de anticipo"]
[]
[]
[null,"LINEAMIENTOS  ESPECIALES "]
["Tipo de adquisición","Persona","Monto","Condición especial",null,null,"Mecanismo de formalización","Pólizas","Servicio"]
["Bien o servicio","Jurídica","Cualquiera","Por solicitud del contratista, el documento de formalización del acuerdo debe firmarse por el representante legal de Uniandes",null,null,"Contrato (Minuta) de Egresos","-     Con Pólizas","Contratos de Egresos"]
["Bien o servicio","Jurídica","Cualquiera","El requerimiento se encuentra asociado a un contrato de egresos previo",null,null,"Contrato (Minuta) de Egresos","-     Con Pólizas","Contratos de Egresos"]
["Bien o servicio","Jurídica",null,"Si el mecanismo de formalización es una orden de compra y El valor del anticipo supera los 50 SMMLV, se pide con pólizas.",null,null,"Órden de Compra de servicios/bienes con clausulado estándar","-     Con Pólizas","Contratos de Egresos"]
["Bien o servicio","Jurídica","Cualquiera","Si la Información confidencial o datos personales del requerimiento tiene un riesgo = \"ALTO\", sin importar el monto se redirige a Contratos de egresos",null,null,"Contrato (Minuta) de Egresos","-     Con Pólizas","Contratos de Egresos"]

{"sheet":"Política de cotizaciones","index":2,"n_rows":6,"n_cols":3,"rows_kept":6,"cut":false,"hidden":true,"merged":[[0,0,0,2],[5,0,5,2]]}
["Política de cotizaciones"]
["Política SMMLV antes de IVA","Valor de la compra ANTES de IVA","# cotizaciones"]
["< 10 SMMLV",{"$f":"+'Lineamientos propuestos'!B2*10","v":14235000},"1 Cotización"]
["Entre 10 y 25 SMMLV",{"$f":"+'Lineamientos propuestos'!B2*25","v":35587500},"2 Cotizaciones"]
[">25 SMMLV",{"$f":"+('Lineamientos propuestos'!B2*25)+1","v":35587501},"3 Cotizaciones"]
["*Salario Mínimo Mensual Legal Vigente"]

{"sheet":"Lista","index":3,"n_rows":11,"n_cols":6,"rows_kept":11,"cut":false,"hidden":true,"merged":[[0,0,0,5],[7,0,7,2]]}
["Validación de datos"]
["Tipo de persona","SMMLV","Tipo de compra","Actividades de Riesgo","Probabilidad","Existencia del riesgo"]
["Jurídica",{"$f":"+'Lineamientos propuestos'!B2","v":1423500},"Bien","SI","Alto","Si"]
["Natural",null,"Servicio","NO","Medio","No"]
[null,null,null,null,"Bajo"]
[]
[]
["Mensaje de información incompleta"]
["Diligencie/complete la información general del proyecto de adquisición de bienes y/o servicios"]
["Complete la evaluación de riesgo"]
["Corregir la combinación seleccionada en información general \n(Tipo de adquisición - tipo de persona)"]

{"sheet":"Matriz de calor","index":4,"n_rows":14,"n_cols":10,"rows_kept":14,"cut":false,"hidden":true,"merged":[[3,3,3,7],[5,1,9,1],[2,1,2,9],[12,3,12,7]]}
[]
[]
[null,"Matriz de calor para evaluar el Riesgo"]
[null,null,null,"Probabilidad"]
[null,null,null,"Casi cierto","Probable","Posible","Improbable","Raro",null,"Riesgo"]
[null,"Impacto","Catastrófico","Alto","Alto","Alto","Medio","Medio",null,"Alto"]
[null,null,"Mayor","Alto","Alto","Alto","Medio","Medio",null,"Medio"]
[null,null,"Moderado","Alto","Alto","Medio","Bajo","Bajo",null,"Bajo"]
[null,null,"Menor","Medio","Medio","Bajo","Bajo","Bajo"]
[null,null,"Insignificante","Medio","Medio","Bajo","Bajo","Bajo"]
[]
[]
[null,null,null,"Probabilidad"]
[null,null,null,"Raro\n(Puede ocurrir excepcionalmente)","Improbable\n(Puede ocurrir ocasionalmente)","Posible\n(Puede ocurrir en cualquier momento futuro)","Probable\n(Probablemente puede ocurrir)","Casi cierto\n(Podría ocurrir en la mayoría de veces)"]

{"sheet":"Actividades Riesgo III IV V","index":5,"n_rows":86,"n_cols":2,"rows_kept":86,"cut":false,"hidden":true,"merged":[]}
["Trabajo en Alturas"]
["ELECTRICIDAD"]
["OBRA CIVIL"]
["VENTANERÍA Y PERFILERÍA"]
["Transporte de pasajeros"]
["VENTA DE ALIMENTOS ","Preparación y/o venta"]
["Recoleccion Residuos quimicos "]
["FUMIGACION"]
["VIGILANCIA Y SEGURIDAD PRIVADA"]
[" SUMINISTROS PARA IMPRESIÓN"]
["SUMINISTRO DE EQUIPOS"]
["AIRE ACONDICIONADO"]
["INSTACION DE PISOS, TAPETES"]
["RECOLECCION RESIDUOS","tóxicos"]
["MOBILIARIO DE LINEA"]
["MANTENIMIENTO"]
["ILUMINACIÓN"]
["SISTEMAS DE CALEFACCION Y CLIMATIZACION"]
["COMBUSTIBLE"]
["MAMPOSTERIA"]
["Telecomunicaciones"]
["REDES SUMINISTRO TECNOLOGÍA"]
["AIRE COMPRIMIDO"]
["ACENSORES"]
["Seguridad electronica y automatizacion"]
["CALENTADORES"]
["INSTALACIONES HIDRAULICAS Y SANITARIAS"]
["MONTAJES  PTAR"]
["EQUIPOS"]
["Pantallas Informativas"]
["ESTRUCTURAS Y DIVISIONES METALICAS"]
["Trabajos de carpinteria y madera"]
["ESTRUCTURAS Y DIVISIONES OFICINAS"]
[" Importatadora y comercializadora de equipos, materiales y reactivos analíticos para laboratorios e instituciones ","Manejo de sustancias peligrosas"]
["Suministros computadores y partes"]
["SUMINISTRO ELECTRICOS"]
["TRATAMIENTO DE AGUAS"]
["DOTACION"]
["SILLAS"]
["MAQUINARIA Y EQUIPO"]
["ORNAMENTACIÓN METALICA"]
["BOMBAS"]
["Diseño Gráfico"]
["PUERTAS Y CONTROL DE ACCESOS"]
["JARDINERIA"]
["INSTALACIONES ELÉCTRICAS"]
["Manipulación de Abejas"]
["LABORATORIO"]
["Tableros eléctricos salones"]
["CORTINAS BLACK UOT"]
["SEÑALIZACION"]
["SUMINISTRO"]
["Automatización Salas"]
["PISOS"]
["Piso Tecnico Data Center"]
["TABLEROS"]
["TELEFONIA"]
["ACPM"]
["PRODUCTOS LIMPIEZA"]
["CONTENEDORES"]
["HIDRAULICA/ LIMPIEZA DE TK AGUA POTABLE"]
["INFRAESTRUCTURA ELECTRICA"]
["REDES Cableado Estructurado"]
["SERVICIO DE CALIBRACION"]
["PLANTAS ELECTRICAS"]
["INSTALACIONES DE GASES"]
["TRANSFORMADORES"]
["Soluciones para Integración de Infraestructura Tecnológica,"]
["PTAR"]
[]
["Actividades de trabajo en alturas","Si para la entrega del bien o prestación del servicio se requiere realizar actividades relacionadas con trabajo en alturas."]
["Actividades de obra civil","Si el objeto de la contratación contiene actividades asociadas a servicios de obra civil (Adecuaciones, mantenimientos, remodelaciónes, etc.)."]
["Servicios que incluyan ventanería y perfilería","Si el objeto de la contratación tiene asociadas actividades de entrega e instalación de ventanas, vidrios y similares."]
["Mantenimientos equipos robustos o especializados","Si el objeto de la contratación tiene asociadas actividades de mantenimiento que se deban prestar dentro de las instalaciones de la Universidad."]
["Trabajos en los sistemas de calefacción y climatización"]
["Servicios de transporte de pasajeros","Todo servicio de transporte de pasajeros en representación de la Universidad."]
["Trabajo en Ascensores","Si la contratación tiene asociadas actividades de mantenimiento y/o reparación de ascensores."]
["Instalaciones hidraulizas y sanitarias"]
["Servicio de Fumigación"]
["Trabajo en las puertas y controles de accesos"]
["Trabajo en los laboratorios"]
["Trabajos relacionados con los tableros electricos de los salones"]
["Actividades de Señalización"]
["Trabajo relacionado con la vigilancia y la seguridad privada"]
["Trabajo con las plantas electricas"]
["Servicios que incluyan suministro e instalación de equipos","Si la contratación tiene asociadas las actividades de suministro e instalación que requieran un alto grado de especialización."]